[Event "8th Ali Ipek Tournament 2020"]
[Site "Ankara"]
[Date "2020.03.07"]
[Round "4.10"]
[White "Ari, Hasancan"]
[Black "Genc, Arda"]
[Result "0-1"]
[ECO "A75"]
[WhiteElo "1399"]
[BlackElo "1734"]
[Annotator "NA RC"]
[PlyCount "94"]
[EventDate "2020.03.04"]
[EventType "swiss"]
[EventCountry "TUR"]
[SourceTitle "playchess.com"]
[Source "ChessBase"]
[SourceQuality "1"]
[TimeControl "5400+30"]

1. d4 {[%emt 0:00:30]} Nf6 {[%emt 0:00:30]} 2. c4 {[%emt 0:00:30]} c5 {[%emt 0:00:00]} 3. d5 {[%emt 0:00:00]} e6 {[%emt 0:00:00]} 4. Nc3 {[%emt 0:00:00]} exd5 {[%emt 0:00:30]} 5. cxd5 {[%emt 0:00:30]} d6 {[%emt 0:00:00]} 6. e4 {[%emt 0:01:30]} g6 {[%emt 0:00:00]} 7. Be2 {[%emt 0:00:00]} Bg7 {[%emt 0:01:30]} 8. Nf3 {[%emt 0:00:00]} O-O {[%emt 0:00:30]} 9. O-O {[%emt 0:01:30]} a6 {[%emt 0:00:30]} 10. a4 {[%emt 0:02:30]} Bg4 {[%emt 0:03:30]} 11. Nd2 {[%emt 0:02:30]} Bxe2 {[%emt 0:01:30]} 12. Qxe2 {[%emt 0:00:00]} Nbd7 {[%emt 0:04:30]} 13. Nc4 {[%emt 0:01:00]} Qe7 {[%emt 0:02:30]} 14. f4 {[%emt 0:03:30]} Rfe8 {[%emt 0:11:30]} 15. Re1 {[%emt 0:03:30]} h5 {[%emt 0:03:30]} 16. h3 {[%emt 0:03:30]} h4 {[%emt 0:00:30]} 17. e5 {[%emt 0:03:30]} dxe5 {[%emt 0:00:30]} 18. fxe5 {[%emt 0:00:30]} Nh5 {[%emt 0:01:30]} 19. e6 {[%emt 0:00:30]} Bd4+ {[%emt 0:01:30]} 20. Kh2 {[%emt 0:01:30]} fxe6 {[%emt 0:08:30]} 21. Qxe6+ {[%emt 0:00:30]} Qxe6 {[%emt 0:00:30]} 22. dxe6 {[%emt 0:00:30]} Ng7 {[%emt 0:01:30]} 23. e7 {[%emt 0:00:30]} Nf5 {[%emt 0:05:30]} 24. Nd5 {[%emt 0:01:30]} Rac8 {[%emt 0:04:30]} 25. Bf4 {[%emt 0:00:30]} Nf6 {[%emt 0:03:30]} 26. Ncb6 {[%emt 0:04:30]} Rc6 {[%emt 0:08:30]} 27. Be5 {[%emt 0:01:30]} Nxd5 {[%emt 0:08:30]} 28. Nxd5 {[%emt 0:00:00]} Kf7 {[%emt 0:01:30]} 29. Re4 {[%emt 0:04:00]} Bxe5+ {[%emt 0:07:52]} 30. Rxe5 {[%emt 0:00:00]} c4 {[%emt 0:10:22]} 31. Rf1 {[%emt 0:02:00]} Rc5 {[%emt 0:00:49]} 32. Rf4 {[%emt 0:03:30]} b5 {[%emt 0:00:18]} 33. axb5 {[%emt 0:01:30]} axb5 {[%emt 0:00:30]} 34. Rfe4 {[%emt 0:00:00]} b4 {[%emt 0:01:36]} 35. Nxb4 {[%emt 0:01:00]} Rxe5 {[%emt 0:00:03]} 36. Rxe5 {[%emt 0:00:00]} Rxe7 {[%emt 0:00:22]} 37. Rc5 {[%emt 0:00:00]} Re4 {[%emt 0:02:40]} 38. Nc6 {[%emt 0:00:30]} Ke6 {[%emt 0:02:43]} 39. Nd8+ {[%emt 0:01:30]} Ke7 {[%emt 0:02:36]} 40. Nb7 {[%emt 0:00:00]} Ng3 {[%emt 0:01:54]} 41. Rc7+ {[%emt 0:00:00]} Kf6 {[%emt 0:00:37]} 42. Kg1 {[%emt 0:00:30]} Rf4 {[%emt 0:00:19]} 43. Kh2 {[%emt 0:02:30]} Nf1+ {[%emt 0:00:44]} 44. Kg1 {[%emt 0:00:30]} Ng3 {[%emt 0:00:30]} 45. Kh2 {[%emt 0:00:00]} Rf1 {[%emt 0:00:00]} 46. Rc6+ {[%emt 0:00:00]} Kg5 {[%emt 0:00:00]} 47. Rc5+ {[%emt 0:00:30]} Kh6 {[%emt 0:00:00]} 0-1

[Event "8th Ali Ipek Tournament 2020"]
[Site "Ankara"]
[Date "2020.03.07"]
[Round "4.11"]
[White "Ceylan, Arda (Ali Riza)"]
[Black "Macit, Mehmet Alper"]
[Result "1-0"]
[ECO "A48"]
[WhiteElo "1637"]
[BlackElo "1466"]
[Annotator "NA RC"]
[PlyCount "83"]
[EventDate "2020.03.04"]
[EventType "swiss"]
[EventCountry "TUR"]
[SourceTitle "playchess.com"]
[Source "ChessBase"]
[SourceQuality "1"]
[TimeControl "5400+30"]

1. d4 {[%emt 0:00:30]} Nf6 {[%emt 0:09:30]} 2. Nf3 {[%emt 0:00:00]} g6 {[%emt 0:00:30]} 3. Nbd2 {[%emt 0:00:00]} Bg7 {[%emt 0:00:30]} 4. e4 {[%emt 0:00:00]} d5 {[%emt 0:01:30]} 5. e5 {[%emt 0:02:00]} Nfd7 {[%emt 0:00:30]} 6. b4 {[%emt 0:04:30]} a5 {[%emt 0:01:30]} 7. b5 {[%emt 0:01:30]} c5 {[%emt 0:01:30]} 8. c3 {[%emt 0:01:30]} cxd4 {[%emt 0:02:30]} 9. cxd4 {[%emt 0:00:30]} Nf8 {[%emt 0:04:30]} 10. Bd3 {[%emt 0:04:30]} Ne6 {[%emt 0:01:30]} 11. O-O {[%emt 0:02:30]} Nf4 {[%emt 0:01:30]} 12. Bc2 {[%emt 0:01:30]} Nd7 {[%emt 0:03:30]} 13. Nb3 {[%emt 0:05:30]} Ne6 {[%emt 0:01:30]} 14. a4 {[%emt 0:00:30]} Nb6 {[%emt 0:00:30]} 15. Qe2 {[%emt 0:05:30]} Nc4 {[%emt 0:02:30]} 16. Bd3 {[%emt 0:02:30]} b6 {[%emt 0:02:30]} 17. Bxc4 {[%emt 0:03:30]} dxc4 {[%emt 0:00:30]} 18. Qxc4 {[%emt 0:00:30]} Bb7 {[%emt 0:00:30]} 19. Be3 {[%emt 0:01:30]} Rc8 {[%emt 0:01:30]} 20. Qe2 {[%emt 0:01:30]} Rc3 {[%emt 0:00:30]} 21. Qb2 {[%emt 0:00:30]} Rc4 {[%emt 0:03:30]} 22. Rfc1 {[%emt 0:02:30]} Qd5 {[%emt 0:01:30]} 23. Rxc4 {[%emt 0:04:30]} Qxc4 {[%emt 0:00:30]} 24. Nbd2 {[%emt 0:00:00]} Qd5 {[%emt 0:01:30]} 25. Rc1 {[%emt 0:06:00]} Kd7 {[%emt 0:03:30]} 26. Nc4 {[%emt 0:01:30]} Qe4 {[%emt 0:04:30]} 27. Nxb6+ {[%emt 0:00:30]} Ke8 {[%emt 0:01:30]} 28. Nc4 {[%emt 0:02:30]} Qg4 {[%emt 0:02:30]} 29. h3 {[%emt 0:00:30]} Qh5 {[%emt 0:00:30]} 30. Nxa5 {[%emt 0:01:30]} Bxf3 {[%emt 0:00:30]} 31. gxf3 {[%emt 0:00:30]} Bh6 {[%emt 0:02:30]} 32. Qd2 {[%emt 0:02:30]} Bxe3 {[%emt 0:01:30]} 33. fxe3 {[%emt 0:00:00]} Qxf3 {[%emt 0:00:00]} 34. Rc8+ {[%emt 0:05:00]} Nd8 {[%emt 0:01:00]} 35. b6 {[%emt 0:02:30]} Qg3+ {[%emt 0:01:30]} 36. Qg2 {[%emt 0:00:30]} Qe1+ {[%emt 0:00:30]} 37. Kh2 {[%emt 0:00:30]} Qxe3 {[%emt 0:02:30]} 38. b7 {[%emt 0:00:30]} Qf4+ {[%emt 0:00:30]} 39. Kh1 {[%emt 0:00:00]} Qe3 {[%emt 0:01:30]} 40. Rxd8+ {[%emt 0:00:00]} Kxd8 {[%emt 0:00:30]} 41. b8=Q+ {[%emt 0:00:30]} Kd7 {[%emt 0:00:30]} 42. Qd5# {[%emt 0:00:00]} 1-0

[Event "8th Ali Ipek Tournament 2020"]
[Site "Ankara"]
[Date "2020.03.07"]
[Round "4.12"]
[White "Sari, Engin"]
[Black "Ergani, Efe"]
[Result "0-1"]
[ECO "B06"]
[WhiteElo "1457"]
[BlackElo "1668"]
[Annotator "NA RC"]
[PlyCount "78"]
[EventDate "2020.03.04"]
[EventType "swiss"]
[EventCountry "TUR"]
[SourceTitle "playchess.com"]
[Source "ChessBase"]
[SourceQuality "1"]
[TimeControl "5400+30"]

1. e4 {[%emt 0:00:30]} g6 {[%emt 0:00:30]} 2. d4 {[%emt 0:00:00]} Bg7 {[%emt 0:00:00]} 3. Nf3 {[%emt 0:00:00]} d6 {[%emt 0:00:00]} 4. Bc4 {[%emt 0:00:30]} e6 {[%emt 0:00:30]} 5. Be3 {[%emt 0:00:30]} Ne7 {[%emt 0:00:30]} 6. Nc3 {[%emt 0:05:30]} a6 {[%emt 0:02:30]} 7. O-O {[%emt 0:02:30]} Nd7 {[%emt 0:03:30]} 8. Qd2 {[%emt 0:02:30]} b5 {[%emt 0:08:30]} 9. Be2 {[%emt 0:14:30]} O-O {[%emt 0:06:30]} 10. Ng5 {[%emt 0:08:30]} h6 {[%emt 0:07:30]} 11. Nh3 {[%emt 0:00:00]} Kh7 {[%emt 0:00:30]} 12. Bd3 {[%emt 0:02:00]} c5 {[%emt 0:01:30]} 13. Be2 {[%emt 0:04:30]} Nc6 {[%emt 0:04:30]} 14. dxc5 {[%emt 0:02:30]} dxc5 {[%emt 0:00:30]} 15. Rfd1 {[%emt 0:11:30]} Nd4 {[%emt 0:00:30]} 16. f3 {[%emt 0:01:30]} Qe7 {[%emt 0:03:30]} 17. Bf1 {[%emt 0:03:30]} Ne5 {[%emt 0:03:30]} 18. Qf2 {[%emt 0:04:30]} f5 {[%emt 0:16:30]} 19. Bxd4 {[%emt 0:05:30]} cxd4 {[%emt 0:02:30]} 20. Rxd4 {[%emt 0:00:30]} Ng4 {[%emt 0:00:00]} 21. Qd2 {[%emt 0:03:30]} Bxd4+ {[%emt 0:00:00]} 22. Qxd4 {[%emt 0:00:00]} Qf6 {[%emt 0:01:30]} 23. Qc5 {[%emt 0:02:00]} Ne5 {[%emt 0:00:30]} 24. Rd1 {[%emt 0:03:30]} Rf7 {[%emt 0:04:30]} 25. exf5 {[%emt 0:01:30]} Qxf5 {[%emt 0:03:30]} 26. Ne4 {[%emt 0:07:08]} Bb7 {[%emt 0:02:30]} 27. Nhf2 {[%emt 0:03:17]} Raf8 {[%emt 0:02:30]} 28. Be2 {[%emt 0:02:05]} Bxe4 {[%emt 0:05:30]} 29. Nxe4 {[%emt 0:00:21]} Nd7 {[%emt 0:00:00]} 30. Qc6 {[%emt 0:02:44]} Nb8 {[%emt 0:01:00]} 31. Qb6 {[%emt 0:00:51]} Rd7 {[%emt 0:02:01]} 32. Rxd7+ {[%emt 0:02:04]} Nxd7 {[%emt 0:00:01]} 33. Qxa6 {[%emt 0:00:22]} Ne5 {[%emt 0:04:17]} 34. Qxb5 {[%emt 0:01:37]} Qf4 {[%emt 0:00:05]} 35. Qc5 {[%emt 0:01:10]} Qc1+ {[%emt 0:01:08]} 36. Bf1 {[%emt 0:02:21]} Qf4 {[%emt 0:00:32]} 37. Qe7+ {[%emt 0:01:07]} Rf7 {[%emt 0:00:48]} 38. Qxe6 {[%emt 0:00:35]} Nxf3+ {[%emt 0:01:18]} 39. gxf3 {[%emt 0:00:17]} Qe3+ {[%emt 0:00:06]} 0-1

[Event "8th Ali Ipek Tournament 2020"]
[Site "Ankara"]
[Date "2020.03.07"]
[Round "4.13"]
[White "Saltik, Suleyman"]
[Black "Akoglanoglu, Murat Umut"]
[Result "1-0"]
[ECO "B43"]
[WhiteElo "1658"]
[BlackElo "1460"]
[Annotator "NA RC"]
[PlyCount "67"]
[EventDate "2020.03.04"]
[EventType "swiss"]
[EventCountry "TUR"]
[SourceTitle "playchess.com"]
[Source "ChessBase"]
[SourceQuality "1"]
[TimeControl "5400+30"]

1. e4 {[%emt 0:00:30]} c5 {[%emt 0:02:30]} 2. Nf3 {[%emt 0:00:00]} e6 {[%emt 0:00:30]} 3. d4 {[%emt 0:00:00]} cxd4 {[%emt 0:00:30]} 4. Nxd4 {[%emt 0:00:30]} a6 {[%emt 0:00:00]} 5. Be2 {[%emt 0:04:30]} Qc7 {[%emt 0:00:00]} 6. a3 {[%emt 0:01:30]} Nf6 {[%emt 0:01:30]} 7. Nc3 {[%emt 0:00:30]} Be7 {[%emt 0:01:30]} 8. O-O {[%emt 0:01:30]} O-O {[%emt 0:00:30]} 9. Bg5 {[%emt 0:00:30]} b5 {[%emt 0:01:30]} 10. Re1 {[%emt 0:06:30]} d6 {[%emt 0:03:30]} 11. f4 {[%emt 0:03:30]} Nc6 {[%emt 0:15:30]} 12. Nxc6 {[%emt 0:04:30]} Qxc6 {[%emt 0:00:00]} 13. Bf3 {[%emt 0:01:30]} Bb7 {[%emt 0:08:00]} 14. Kh1 {[%emt 0:09:30]} Qc5 {[%emt 0:03:30]} 15. Qd3 {[%emt 0:03:30]} Rfd8 {[%emt 0:09:30]} 16. Rad1 {[%emt 0:02:30]} Rac8 {[%emt 0:02:30]} 17. Qf1 {[%emt 0:02:30]} b4 {[%emt 0:05:30]} 18. e5 {[%emt 0:05:30]} Bxf3 {[%emt 0:01:30]} 19. exf6 {[%emt 0:02:30]} gxf6 {[%emt 0:02:30]} 20. axb4 {[%emt 0:07:30]} Qxb4 {[%emt 0:01:30]} 21. Qxf3 {[%emt 0:01:30]} fxg5 {[%emt 0:00:30]} 22. f5 {[%emt 0:01:30]} Qxb2 {[%emt 0:06:30]} 23. fxe6 {[%emt 0:01:30]} fxe6 {[%emt 0:01:30]} 24. Nd5 {[%emt 0:00:30]} Qg7 {[%emt 0:04:30]} 25. Rxe6 {[%emt 0:00:30]} Bf8 {[%emt 0:07:30]} 26. Nf6+ {[%emt 0:06:30]} Kh8 {[%emt 0:00:30]} 27. Nh5 {[%emt 0:03:30]} Qg8 {[%emt 0:02:15]} 28. Qf6+ {[%emt 0:03:30]} Bg7 {[%emt 0:00:27]} 29. Qxg5 {[%emt 0:00:30]} Rc5 {[%emt 0:03:48]} 30. Rd5 {[%emt 0:03:30]} Rd7 {[%emt 0:06:08]} 31. Rxc5 {[%emt 0:03:30]} dxc5 {[%emt 0:00:02]} 32. Re1 {[%emt 0:00:30]} Qe6 {[%emt 0:01:34]} 33. Qxg7+ {[%emt 0:00:30]} Rxg7 {[%emt 0:00:29]} 34. Rxe6 {[%emt 0:00:30]} 1-0

[Event "8th Ali Ipek Tournament 2020"]
[Site "Ankara"]
[Date "2020.03.07"]
[Round "4.15"]
[White "Kesgin, Murat Can"]
[Black "Firat, Mehmet Bugra"]
[Result "1/2-1/2"]
[ECO "E20"]
[WhiteElo "1551"]
[BlackElo "1601"]
[Annotator "NA RC"]
[PlyCount "97"]
[EventDate "2020.03.04"]
[EventType "swiss"]
[EventCountry "TUR"]
[SourceTitle "playchess.com"]
[Source "ChessBase"]
[SourceQuality "1"]
[TimeControl "5400+30"]

1. d4 {[%emt 0:00:30]} Nf6 {[%emt 0:06:30]} 2. c4 {[%emt 0:00:00]} e6 {[%emt 0:00:30]} 3. Nc3 {[%emt 0:00:00]} Bb4 {[%emt 0:01:30]} 4. f3 {[%emt 0:00:30]} b6 {[%emt 0:04:30]} 5. e4 {[%emt 0:00:30]} O-O {[%emt 0:01:30]} 6. Bd3 {[%emt 0:06:30]} Bb7 {[%emt 0:04:30]} 7. a3 {[%emt 0:00:30]} Bxc3+ {[%emt 0:00:30]} 8. bxc3 {[%emt 0:00:00]} d6 {[%emt 0:00:30]} 9. Bg5 {[%emt 0:01:00]} e5 {[%emt 0:01:30]} 10. Ne2 {[%emt 0:00:30]} Nbd7 {[%emt 0:02:30]} 11. O-O {[%emt 0:01:30]} h6 {[%emt 0:03:30]} 12. Bh4 {[%emt 0:00:30]} g5 {[%emt 0:00:00]} 13. Bf2 {[%emt 0:00:00]} Nh5 {[%emt 0:02:00]} 14. Qd2 {[%emt 0:03:00]} Qf6 {[%emt 0:08:30]} 15. h4 {[%emt 0:03:30]} Kh8 {[%emt 0:05:30]} 16. hxg5 {[%emt 0:06:30]} hxg5 {[%emt 0:00:30]} 17. Be3 {[%emt 0:02:30]} Nf4 {[%emt 0:02:30]} 18. Bxf4 {[%emt 0:05:30]} gxf4 {[%emt 0:02:30]} 19. g3 {[%emt 0:01:30]} Qg5 {[%emt 0:09:30]} 20. Ra2 {[%emt 0:15:30]} Rg8 {[%emt 0:12:30]} 21. Kf2 {[%emt 0:02:30]} fxg3+ {[%emt 0:00:30]} 22. Kg2 {[%emt 0:00:00]} Qxd2 {[%emt 0:07:30]} 23. Rxd2 {[%emt 0:01:00]} Rg6 {[%emt 0:02:43]} 24. Nxg3 {[%emt 0:04:30]} Rag8 {[%emt 0:00:30]} 25. Kf2 {[%emt 0:00:30]} Kg7 {[%emt 0:00:28]} 26. Nf5+ {[%emt 0:01:30]} Kf8 {[%emt 0:00:19]} 27. Ke3 {[%emt 0:02:30]} Nf6 {[%emt 0:03:15]} 28. Rh2 {[%emt 0:08:30]} Bc8 {[%emt 0:00:58]} 29. Nh6 {[%emt 0:06:30]} Rh8 {[%emt 0:02:09]} 30. Rfh1 {[%emt 0:00:30]} Ng8 {[%emt 0:01:42]} 31. Nxg8 {[%emt 0:06:30]} Rhxg8 {[%emt 0:00:15]} 32. c5 {[%emt 0:01:30]} bxc5 {[%emt 0:00:24]} 33. dxe5 {[%emt 0:01:23]} dxe5 {[%emt 0:00:06]} 34. Rh5 {[%emt 0:00:00]} Rg5 {[%emt 0:01:04]} 35. Rxg5 {[%emt 0:00:48]} Rxg5 {[%emt 0:00:06]} 36. Bc4 {[%emt 0:01:14]} Kg7 {[%emt 0:03:03]} 37. Rb1 {[%emt 0:01:34]} Rg6 {[%emt 0:01:12]} 38. Rb5 {[%emt 0:00:36]} Ba6 {[%emt 0:01:34]} 39. Rxc5 {[%emt 0:00:36]} Bxc4 {[%emt 0:00:30]} 40. Rxc4 {[%emt 0:00:00]} Ra6 {[%emt 0:00:15]} 41. a4 {[%emt 0:00:41]} c6 {[%emt 0:02:18]} 42. f4 {[%emt 0:07:32]} f6 {[%emt 0:00:36]} 43. fxe5 {[%emt 0:01:30]} fxe5 {[%emt 0:00:06]} 44. Kd3 {[%emt 0:01:03]} Kf6 {[%emt 0:00:06]} 45. Kc2 {[%emt 0:01:48]} Ke6 {[%emt 0:01:13]} 46. Kb3 {[%emt 0:00:12]} Kd6 {[%emt 0:00:14]} 47. Rb4 {[%emt 0:03:48]} Kc5 {[%emt 0:03:42]} 48. Rb8 {[%emt 0:00:56]} Kd6 {[%emt 0:00:30]} 49. Rb4 {[%emt 0:00:30]} 1/2-1/2

[Event "8th Ali Ipek Tournament 2020"]
[Site "Ankara"]
[Date "2020.03.07"]
[Round "4.16"]
[White "Bilen, Tuna"]
[Black "Vural, Burak"]
[Result "1-0"]
[ECO "C02"]
[WhiteElo "1367"]
[BlackElo "1604"]
[Annotator "NA RC"]
[PlyCount "133"]
[EventDate "2020.03.04"]
[EventType "swiss"]
[EventCountry "TUR"]
[SourceTitle "playchess.com"]
[Source "ChessBase"]
[SourceQuality "1"]
[TimeControl "5400+30"]

1. e4 {[%emt 0:00:30]} c5 {[%emt 0:01:30]} 2. c3 {[%emt 0:00:00]} e6 {[%emt 0:00:30]} 3. d4 {[%emt 0:00:00]} d5 {[%emt 0:00:30]} 4. e5 {[%emt 0:00:30]} Nc6 {[%emt 0:00:00]} 5. Nf3 {[%emt 0:00:00]} Bd7 {[%emt 0:01:00]} 6. Na3 {[%emt 0:00:00]} Nge7 {[%emt 0:03:30]} 7. Bg5 {[%emt 0:06:30]} a6 {[%emt 0:04:30]} 8. Nc2 {[%emt 0:32:30]} Qb6 {[%emt 0:12:30]} 9. b3 {[%emt 0:03:30]} cxd4 {[%emt 0:02:30]} 10. cxd4 {[%emt 0:00:00]} Nf5 {[%emt 0:01:30]} 11. g4 {[%emt 0:07:00]} Nh6 {[%emt 0:14:30]} 12. h3 {[%emt 0:03:30]} Nb4 {[%emt 0:04:30]} 13. Nxb4 {[%emt 0:03:30]} Bxb4+ {[%emt 0:00:00]} 14. Bd2 {[%emt 0:00:00]} Ba3 {[%emt 0:08:00]} 15. Bd3 {[%emt 0:02:00]} Bb2 {[%emt 0:06:30]} 16. Rb1 {[%emt 0:01:30]} Bxd4 {[%emt 0:00:30]} 17. O-O {[%emt 0:01:30]} Bc5 {[%emt 0:07:30]} 18. b4 {[%emt 0:01:30]} Be7 {[%emt 0:00:30]} 19. Be3 {[%emt 0:00:00]} Qd8 {[%emt 0:02:30]} 20. Qd2 {[%emt 0:01:00]} Ng8 {[%emt 0:02:30]} 21. Rfc1 {[%emt 0:11:30]} Rc8 {[%emt 0:10:16]} 22. Bd4 {[%emt 0:02:30]} g6 {[%emt 0:07:57]} 23. g5 {[%emt 0:04:39]} h6 {[%emt 0:03:52]} 24. h4 {[%emt 0:00:06]} hxg5 {[%emt 0:00:35]} 25. hxg5 {[%emt 0:00:08]} Rh5 {[%emt 0:00:47]} 26. Be3 {[%emt 0:00:11]} d4 {[%emt 0:01:00]} 27. Rxc8 {[%emt 0:01:49]} Bxc8 {[%emt 0:00:06]} 28. Bf4 {[%emt 0:00:00]} Kf8 {[%emt 0:01:59]} 29. Be4 {[%emt 0:00:10]} b6 {[%emt 0:01:37]} 30. a3 {[%emt 0:00:28]} a5 {[%emt 0:00:33]} 31. Rd1 {[%emt 0:01:10]} axb4 {[%emt 0:00:16]} 32. axb4 {[%emt 0:00:08]} Kg7 {[%emt 0:01:16]} 33. b5 {[%emt 0:01:19]} Bc5 {[%emt 0:00:19]} 34. Nxd4 {[%emt 0:01:32]} Qf8 {[%emt 0:00:37]} 35. Nc6 {[%emt 0:02:12]} Ne7 {[%emt 0:00:37]} 36. Qd8 {[%emt 0:01:56]} Rh4 {[%emt 0:00:26]} 37. Qd2 {[%emt 0:01:09]} Bb7 {[%emt 0:00:14]} 38. Bg2 {[%emt 0:02:07]} Qa8 {[%emt 0:00:22]} 39. Bg3 {[%emt 0:00:28]} Rh8 {[%emt 0:00:46]} 40. Qd7 {[%emt 0:00:34]} Nf5 {[%emt 0:00:47]} 41. Nd8 {[%emt 0:02:55]} Rxd8 {[%emt 0:00:24]} 42. Qxd8 {[%emt 0:00:07]} Bxg2 {[%emt 0:00:17]} 43. Qf6+ {[%emt 0:00:52]} Kh7 {[%emt 0:00:10]} 44. Qxf7+ {[%emt 0:00:00]} Ng7 {[%emt 0:00:36]} 45. Rd7 {[%emt 0:00:39]} Bf8 {[%emt 0:00:11]} 46. Ra7 {[%emt 0:00:39]} Qf3 {[%emt 0:00:32]} 47. Qxf3 {[%emt 0:01:26]} Bxf3 {[%emt 0:00:30]} 48. Rf7 {[%emt 0:00:03]} Be2 {[%emt 0:00:57]} 49. Rxf8 {[%emt 0:00:11]} Bxb5 {[%emt 0:00:09]} 50. Rb8 {[%emt 0:00:38]} Bd3 {[%emt 0:00:00]} 51. Rxb6 {[%emt 0:00:19]} Bf5 {[%emt 0:00:10]} 52. Rb4 {[%emt 0:00:29]} Nh5 {[%emt 0:00:16]} 53. Kg2 {[%emt 0:00:00]} Nxg3 {[%emt 0:01:04]} 54. Kxg3 {[%emt 0:00:26]} Kg7 {[%emt 0:00:30]} 55. f3 {[%emt 0:00:30]} Kf7 {[%emt 0:00:30]} 56. Rf4 {[%emt 0:00:30]} Kg7 {[%emt 0:00:30]} 57. Rxf5 {[%emt 0:00:30]} gxf5 {[%emt 0:00:30]} 58. f4 {[%emt 0:00:30]} Kh7 {[%emt 0:00:30]} 59. Kf3 {[%emt 0:00:30]} Kg7 {[%emt 0:00:30]} 60. Ke3 {[%emt 0:00:30]} Kf7 {[%emt 0:00:30]} 61. Kd4 {[%emt 0:00:30]} Ke8 {[%emt 0:00:30]} 62. Kc5 {[%emt 0:00:30]} Kd7 {[%emt 0:00:30]} 63. g6 {[%emt 0:00:00]} Ke7 {[%emt 0:00:00]} 64. Kc6 {[%emt 0:00:00]} Kf8 {[%emt 0:00:00]} 65. Kd6 {[%emt 0:00:00]} Kg7 {[%emt 0:00:00]} 66. Kxe6 {[%emt 0:00:00]} Kxg6 {[%emt 0:00:09]} 67. Kd7 {[%emt 0:00:07]} 1-0

[Event "8th Ali Ipek Tournament 2020"]
[Site "Ankara"]
[Date "2020.03.07"]
[Round "4.17"]
[White "Aral, Demir"]
[Black "Yilmaz, Zulfikar Baran"]
[Result "1-0"]
[ECO "B77"]
[WhiteElo "1554"]
[BlackElo "1370"]
[Annotator "NA RC"]
[PlyCount "109"]
[EventDate "2020.03.04"]
[EventType "swiss"]
[EventCountry "TUR"]
[SourceTitle "playchess.com"]
[Source "ChessBase"]
[SourceQuality "1"]
[TimeControl "5400+30"]

1. e4 {[%emt 0:00:30]} c5 {[%emt 0:05:30]} 2. Nf3 {[%emt 0:00:30]} d6 {[%emt 0:00:30]} 3. d4 {[%emt 0:00:00]} cxd4 {[%emt 0:00:00]} 4. Nxd4 {[%emt 0:00:00]} Nf6 {[%emt 0:00:00]} 5. Nc3 {[%emt 0:00:00]} g6 {[%emt 0:00:00]} 6. Be3 {[%emt 0:00:00]} Bg7 {[%emt 0:00:00]} 7. Bc4 {[%emt 0:00:30]} O-O {[%emt 0:00:00]} 8. f3 {[%emt 0:00:30]} Nc6 {[%emt 0:00:00]} 9. Qd2 {[%emt 0:00:30]} Bd7 {[%emt 0:00:30]} 10. g4 {[%emt 0:03:30]} Rc8 {[%emt 0:00:00]} 11. Be2 {[%emt 0:00:00]} Ne5 {[%emt 0:01:00]} 12. h4 {[%emt 0:03:00]} Nc4 {[%emt 0:02:30]} 13. Bxc4 {[%emt 0:00:30]} Rxc4 {[%emt 0:00:00]} 14. Nde2 {[%emt 0:01:30]} a6 {[%emt 0:03:00]} 15. h5 {[%emt 0:02:30]} b5 {[%emt 0:02:30]} 16. hxg6 {[%emt 0:01:30]} fxg6 {[%emt 0:00:30]} 17. Bh6 {[%emt 0:03:30]} Rf7 {[%emt 0:10:30]} 18. Bxg7 {[%emt 0:03:30]} Rxg7 {[%emt 0:00:30]} 19. a4 {[%emt 0:03:30]} Qa5 {[%emt 0:10:30]} 20. g5 {[%emt 0:11:30]} Ne8 {[%emt 0:02:30]} 21. Nd5 {[%emt 0:02:30]} Qxd2+ {[%emt 0:05:30]} 22. Kxd2 {[%emt 0:00:30]} Be6 {[%emt 0:12:30]} 23. Ne3 {[%emt 0:03:30]} Rc5 {[%emt 0:01:30]} 24. f4 {[%emt 0:01:30]} Bc4 {[%emt 0:00:30]} 25. Nd4 {[%emt 0:06:30]} e5 {[%emt 0:02:30]} 26. b4 {[%emt 0:14:30]} exd4 {[%emt 0:03:30]} 27. bxc5 {[%emt 0:00:30]} dxe3+ {[%emt 0:00:30]} 28. Kxe3 {[%emt 0:00:00]} dxc5 {[%emt 0:00:00]} 29. axb5 {[%emt 0:00:00]} Bxb5 {[%emt 0:00:00]} 30. Rhd1 {[%emt 0:03:30]} Re7 {[%emt 0:02:30]} 31. Rd8 {[%emt 0:06:30]} Kf7 {[%emt 0:00:30]} 32. c4 {[%emt 0:00:30]} Bxc4 {[%emt 0:00:30]} 33. Rc1 {[%emt 0:00:30]} Bb5 {[%emt 0:00:30]} 34. Rxc5 {[%emt 0:00:30]} Nc7 {[%emt 0:00:30]} 35. Rd6 {[%emt 0:00:30]} Ne8 {[%emt 0:00:30]} 36. Rb6 {[%emt 0:00:30]} Rd7 {[%emt 0:00:30]} 37. f5 {[%emt 0:00:30]} Nd6 {[%emt 0:00:30]} 38. Kf4 {[%emt 0:00:30]} gxf5 {[%emt 0:00:30]} 39. e5 {[%emt 0:00:30]} Ne4 {[%emt 0:00:30]} 40. e6+ {[%emt 0:00:30]} Ke7 {[%emt 0:00:30]} 41. Rcxb5 {[%emt 0:00:30]} axb5 {[%emt 0:00:30]} 42. exd7 {[%emt 0:00:30]} Kxd7 {[%emt 0:00:30]} 43. Rxb5 {[%emt 0:00:30]} Nd6 {[%emt 0:00:30]} 44. Ra5 {[%emt 0:00:30]} Ke6 {[%emt 0:00:30]} 45. Ra6 {[%emt 0:00:30]} Ke7 {[%emt 0:00:30]} 46. Ra7+ {[%emt 0:00:30]} Kf8 {[%emt 0:00:30]} 47. Rxh7 {[%emt 0:00:30]} Kg8 {[%emt 0:00:30]} 48. Rd7 {[%emt 0:00:30]} Ne4 {[%emt 0:00:30]} 49. Kxf5 {[%emt 0:00:30]} Nc5 {[%emt 0:00:30]} 50. Rc7 {[%emt 0:00:30]} Na6 {[%emt 0:00:30]} 51. Ra7 {[%emt 0:00:30]} Nc5 {[%emt 0:00:30]} 52. g6 {[%emt 0:00:30]} Kf8 {[%emt 0:00:30]} 53. g7+ {[%emt 0:00:30]} Kg8 {[%emt 0:00:30]} 54. Kg6 {[%emt 0:00:30]} Nd7 {[%emt 0:00:30]} 55. Ra8+ {[%emt 0:00:30]} 1-0